[Event "Titled Tuesday Blitz July 25 Late 2023"]
[White "Santos Ruiz, Miguel"]
[Black "Alboredo, Julia"]
[WhiteFideId "22291482"]
[BlackFideId "2124807"]
[WhiteElo "2753"]
[BlackElo "2486"]
[Result "1-0"]
[Round "3"]
[TimeControl "180+2"]
[Date "2023.07.25"]
[WhiteClock "0:00:07"]
[BlackClock "0:00:15"]
[Board "64"]

1. d3 {[%clk 0:02:58]}  Nf6 {[%clk 0:02:59]} 2. e4 {[%clk 0:02:58]}  d6 {[%clk 0:02:59]} 3. g3 {[%clk 0:02:57]}  g6 {[%clk 0:02:59]} 4. Bg2 {[%clk 0:02:58]}  Bg7 {[%clk 0:03:00]} 5. Nd2 {[%clk 0:02:57]}  O-O {[%clk 0:03:00]} 6. Ngf3 {[%clk 0:02:58]}  e5 {[%clk 0:02:59]} 7. O-O {[%clk 0:02:58]}  Nc6 {[%clk 0:02:59]} 8. a4 {[%clk 0:02:58]}  Qe7 {[%clk 0:02:57]} 9. Re1 {[%clk 0:02:54]}  h6 {[%clk 0:02:54]} 10. c3 {[%clk 0:02:54]}  Nd7 {[%clk 0:02:42]} 11. b4 {[%clk 0:02:50]}  a6 {[%clk 0:02:35]} 12. Bb2 {[%clk 0:02:39]}  Kh7 {[%clk 0:02:27]} 13. b5 {[%clk 0:02:38]}  axb5 {[%clk 0:02:25]} 14. axb5 {[%clk 0:02:39]}  Rxa1 {[%clk 0:02:26]} 15. Qxa1 {[%clk 0:02:39]}  Nd8 {[%clk 0:02:27]} 16. d4 {[%clk 0:02:26]}  Ne6 {[%clk 0:02:27]} 17. Nc4 {[%clk 0:02:21]}  Ng5 {[%clk 0:02:19]} 18. Ne3 {[%clk 0:02:02]}  c6 {[%clk 0:02:11]} 19. bxc6 {[%clk 0:01:53]}  bxc6 {[%clk 0:02:12]} 20. Nxg5+ {[%clk 0:01:53]}  Qxg5 {[%clk 0:02:10]} 21. Qa3 {[%clk 0:01:52]}  c5 {[%clk 0:02:00]} 22. h4 {[%clk 0:01:45]}  Qd8 {[%clk 0:01:58]} 23. Nc4 {[%clk 0:01:38]}  Nb6 {[%clk 0:01:45]} 24. Nxb6 {[%clk 0:01:08]}  Qxb6 {[%clk 0:01:46]} 25. dxc5 {[%clk 0:01:05]}  Qxc5 {[%clk 0:01:38]} 26. Qxc5 {[%clk 0:01:04]}  dxc5 {[%clk 0:01:39]} 27. Ba3 {[%clk 0:01:04]}  Rd8 {[%clk 0:01:33]} 28. Bxc5 {[%clk 0:01:04]}  Rd3 {[%clk 0:01:33]} 29. Bb4 {[%clk 0:01:02]}  Kg8 {[%clk 0:01:27]} 30. Bf1 {[%clk 0:01:01]}  Rd8 {[%clk 0:01:19]} 31. Be2 {[%clk 0:00:56]}  Be6 {[%clk 0:01:19]} 32. Rd1 {[%clk 0:00:56]}  Rc8 {[%clk 0:01:19]} 33. f3 {[%clk 0:00:52]}  h5 {[%clk 0:01:19]} 34. Kf2 {[%clk 0:00:52]}  Bf8 {[%clk 0:01:03]} 35. Rb1 {[%clk 0:00:38]}  Bc5+ {[%clk 0:00:52]} 36. Ke1 {[%clk 0:00:35]}  Be3 {[%clk 0:00:47]} 37. Ra1 {[%clk 0:00:19]}  Rd8 {[%clk 0:00:41]} 38. Rd1 {[%clk 0:00:12]}  Ra8 {[%clk 0:00:38]} 39. c4 {[%clk 0:00:09]}  Ra4 {[%clk 0:00:36]} 40. Rb1 {[%clk 0:00:07]}  Ra2 {[%clk 0:00:30]} 41. Bc3 {[%clk 0:00:08]}  f6 {[%clk 0:00:22]} 42. Bb2 {[%clk 0:00:06]}  Ra4 {[%clk 0:00:18]} 43. Ra1 {[%clk 0:00:07]}  Rb4 {[%clk 0:00:16]} 44. Bc3 {[%clk 0:00:07]}  Rb8 {[%clk 0:00:15]} 45. Bd2 {[%clk 0:00:06]}  Bd4 {[%clk 0:00:14]} 46. Rc1 {[%clk 0:00:06]}  Rc8 {[%clk 0:00:14]} 47. Bd3 {[%clk 0:00:06]}  Kf7 {[%clk 0:00:14]} 48. Ke2 {[%clk 0:00:07]}  f5 {[%clk 0:00:14]} 49. Be3 {[%clk 0:00:07]}  Bb2 {[%clk 0:00:13]} 50. Rb1 {[%clk 0:00:07]}  Ba3 {[%clk 0:00:14]} 51. Rb7+ {[%clk 0:00:07]}  Kf6 {[%clk 0:00:15]} 52. Bg5# {[%clk 0:00:07]} 1-0


[Site "https://www.chess.com"]

[Event "Titled Tuesday Blitz July 25 Late 2023"]
[White "Adewumi, Tanitoluwa"]
[Black "Dinu, Dumitru-Daniel"]
[WhiteFideId "30966396"]
[BlackFideId "1208403"]
[WhiteElo "2687"]
[BlackElo "2473"]
[Result "1-0"]
[Round "3"]
[TimeControl "180+2"]
[Date "2023.07.25"]
[WhiteClock "0:00:07"]
[BlackClock "0:00:00"]
[Board "70"]

1. e4 {[%clk 0:03:00]}  c5 {[%clk 0:02:59]} 2. Nf3 {[%clk 0:02:50]}  Nc6 {[%clk 0:02:59]} 3. Bb5 {[%clk 0:02:50]}  g6 {[%clk 0:02:59]} 4. Bxc6 {[%clk 0:02:50]}  dxc6 {[%clk 0:02:57]} 5. d3 {[%clk 0:02:50]}  Bg7 {[%clk 0:02:57]} 6. h3 {[%clk 0:02:51]}  Nf6 {[%clk 0:02:57]} 7. Nc3 {[%clk 0:02:50]}  Nd7 {[%clk 0:02:51]} 8. O-O {[%clk 0:02:46]}  e5 {[%clk 0:02:50]} 9. Be3 {[%clk 0:02:47]}  O-O {[%clk 0:02:49]} 10. Qd2 {[%clk 0:02:47]}  b6 {[%clk 0:02:47]} 11. Bh6 {[%clk 0:02:43]}  f6 {[%clk 0:02:47]} 12. Nh2 {[%clk 0:02:42]}  Re8 {[%clk 0:02:42]} 13. Bxg7 {[%clk 0:02:38]}  Kxg7 {[%clk 0:02:42]} 14. f4 {[%clk 0:02:39]}  exf4 {[%clk 0:02:39]} 15. Rxf4 {[%clk 0:02:40]}  Ne5 {[%clk 0:02:34]} 16. Raf1 {[%clk 0:02:38]}  Rf8 {[%clk 0:02:30]} 17. Ne2 {[%clk 0:02:16]}  Be6 {[%clk 0:02:20]} 18. Ng3 {[%clk 0:01:57]}  c4 {[%clk 0:02:09]} 19. d4 {[%clk 0:01:54]}  c5 {[%clk 0:01:58]} 20. d5 {[%clk 0:01:54]}  Bd7 {[%clk 0:01:54]} 21. Rh4 {[%clk 0:01:22]}  h5 {[%clk 0:01:50]} 22. Rhf4 {[%clk 0:01:06]}  Qe7 {[%clk 0:01:43]} 23. R4f2 {[%clk 0:01:04]}  Rad8 {[%clk 0:01:41]} 24. Qf4 {[%clk 0:01:00]}  Bc8 {[%clk 0:01:25]} 25. Qh4 {[%clk 0:00:54]}  Rde8 {[%clk 0:01:14]} 26. Ne2 {[%clk 0:00:47]}  f5 {[%clk 0:01:07]} 27. Qxe7+ {[%clk 0:00:37]}  Rxe7 {[%clk 0:01:07]} 28. exf5 {[%clk 0:00:37]}  Rxf5 {[%clk 0:01:07]} 29. Nf4 {[%clk 0:00:31]}  Ref7 {[%clk 0:00:55]} 30. g3 {[%clk 0:00:24]}  Kh6 {[%clk 0:00:43]} 31. h4 {[%clk 0:00:10]}  Kg7 {[%clk 0:00:42]} 32. Kg2 {[%clk 0:00:10]}  Bd7 {[%clk 0:00:36]} 33. Re1 {[%clk 0:00:09]}  Re7 {[%clk 0:00:32]} 34. Rfe2 {[%clk 0:00:09]}  Kf6 {[%clk 0:00:24]} 35. Nf3 {[%clk 0:00:09]}  Nxf3 {[%clk 0:00:22]} 36. Rxe7 {[%clk 0:00:10]}  Nxe1+ {[%clk 0:00:22]} 37. Rxe1 {[%clk 0:00:10]}  Kf7 {[%clk 0:00:12]} 38. d6 {[%clk 0:00:09]}  Bc6+ {[%clk 0:00:11]} 39. Kg1 {[%clk 0:00:08]}  Kf6 {[%clk 0:00:11]} 40. Re6+ {[%clk 0:00:08]}  Kf7 {[%clk 0:00:11]} 41. Re7+ {[%clk 0:00:09]}  Kf6 {[%clk 0:00:11]} 42. Rc7 {[%clk 0:00:09]}  Bb5 {[%clk 0:00:11]} 43. Rxa7 {[%clk 0:00:07]}  Re5 {[%clk 0:00:10]} 44. d7 {[%clk 0:00:06]}  Re1+ {[%clk 0:00:08]} 45. Kf2 {[%clk 0:00:06]}  Rd1 {[%clk 0:00:08]} 46. Ke2 {[%clk 0:00:06]}  Rxd7 {[%clk 0:00:08]} 47. Rxd7 {[%clk 0:00:04]}  Bxd7 {[%clk 0:00:09]} 48. Ke3 {[%clk 0:00:04]}  Bf5 {[%clk 0:00:08]} 49. Nd5+ {[%clk 0:00:04]}  Ke5 {[%clk 0:00:09]} 50. Nxb6 {[%clk 0:00:05]}  Bxc2 {[%clk 0:00:08]} 51. Nxc4+ {[%clk 0:00:06]}  Kd5 {[%clk 0:00:07]} 52. Nd2 {[%clk 0:00:06]}  c4 {[%clk 0:00:06]} 53. Nf3 {[%clk 0:00:06]}  Bf5 {[%clk 0:00:06]} 54. a3 {[%clk 0:00:06]}  Bb1 {[%clk 0:00:05]} 55. Nd4 {[%clk 0:00:06]}  Be4 {[%clk 0:00:04]} 56. Ne2 {[%clk 0:00:07]}  Bd3 {[%clk 0:00:03]} 57. Nc3+ {[%clk 0:00:08]}  Ke5 {[%clk 0:00:04]} 58. a4 {[%clk 0:00:07]}  Bf5 {[%clk 0:00:03]} 59. a5 {[%clk 0:00:08]}  Bc8 {[%clk 0:00:03]} 60. Ne2 {[%clk 0:00:07]}  Ba6 {[%clk 0:00:02]} 61. Nf4 {[%clk 0:00:08]}  Kf5 {[%clk 0:00:03]} 62. Kf3 {[%clk 0:00:08]}  Bb7+ {[%clk 0:00:03]} 63. Ke3 {[%clk 0:00:08]}  Ba6 {[%clk 0:00:02]} 64. Nd5 {[%clk 0:00:08]}  Kg4 {[%clk 0:00:01]} 65. Kf2 {[%clk 0:00:07]}  Kf5 {[%clk 0:00:02]} 66. Nb4 {[%clk 0:00:07]}  Bb7 {[%clk 0:00:01]} 67. a6 {[%clk 0:00:08]}  Ba8 {[%clk 0:00:02]} 68. a7 {[%clk 0:00:08]}  Ke5 {[%clk 0:00:00]} 69. Ke3 {[%clk 0:00:07]} 1-0


[Site "https://www.chess.com"]

[Event "Titled Tuesday Blitz July 25 Late 2023"]
[White "ArchibaldCerveza29"]
[Black "Sabuk, Piotr"]
[BlackFideId "1137565"]
[WhiteElo "2471"]
[BlackElo "2682"]
[Result "0-1"]
[Round "3"]
[TimeControl "180+2"]
[Date "2023.07.25"]
[WhiteClock "0:00:23"]
[BlackClock "0:00:52"]
[Board "71"]

1. d4 {[%clk 0:02:56]}  Nf6 {[%clk 0:02:58]} 2. Nf3 {[%clk 0:02:53]}  b6 {[%clk 0:02:53]} 3. g3 {[%clk 0:02:52]}  Bb7 {[%clk 0:02:52]} 4. Bg2 {[%clk 0:02:53]}  c5 {[%clk 0:02:51]} 5. O-O {[%clk 0:02:54]}  cxd4 {[%clk 0:02:47]} 6. b3 {[%clk 0:02:46]}  Qc7 {[%clk 0:02:23]} 7. Bb2 {[%clk 0:02:44]}  e5 {[%clk 0:02:23]} 8. c3 {[%clk 0:02:16]}  Be7 {[%clk 0:02:18]} 9. cxd4 {[%clk 0:02:15]}  e4 {[%clk 0:02:19]} 10. Ne5 {[%clk 0:02:14]}  d6 {[%clk 0:02:19]} 11. Nc4 {[%clk 0:02:14]}  b5 {[%clk 0:02:14]} 12. Ncd2 {[%clk 0:02:12]}  d5 {[%clk 0:02:07]} 13. Nc3 {[%clk 0:02:10]}  b4 {[%clk 0:02:06]} 14. Na4 {[%clk 0:02:10]}  Nbd7 {[%clk 0:02:06]} 15. Rc1 {[%clk 0:02:10]}  Qa5 {[%clk 0:02:03]} 16. f3 {[%clk 0:01:55]}  e3 {[%clk 0:01:55]} 17. Nb1 {[%clk 0:01:56]}  O-O {[%clk 0:01:55]} 18. Qd3 {[%clk 0:01:56]}  Rfe8 {[%clk 0:01:50]} 19. Qxe3 {[%clk 0:01:56]}  Ba6 {[%clk 0:01:41]} 20. Rfe1 {[%clk 0:01:53]}  Bb5 {[%clk 0:01:37]} 21. Qd2 {[%clk 0:01:45]}  Bxa4 {[%clk 0:01:35]} 22. bxa4 {[%clk 0:01:46]}  Qxa4 {[%clk 0:01:32]} 23. e4 {[%clk 0:01:46]}  Nb6 {[%clk 0:01:29]} 24. e5 {[%clk 0:01:43]}  Nfd7 {[%clk 0:01:28]} 25. f4 {[%clk 0:01:40]}  Nc4 {[%clk 0:01:25]} 26. Qf2 {[%clk 0:01:39]}  Ndb6 {[%clk 0:01:23]} 27. Bxd5 {[%clk 0:01:20]}  Nxd5 {[%clk 0:01:22]} 28. Rxc4 {[%clk 0:01:18]}  Qxa2 {[%clk 0:01:22]} 29. Rec1 {[%clk 0:01:14]}  a5 {[%clk 0:01:19]} 30. f5 {[%clk 0:01:04]}  a4 {[%clk 0:01:15]} 31. f6 {[%clk 0:00:57]}  gxf6 {[%clk 0:01:15]} 32. exf6 {[%clk 0:00:57]}  Bxf6 {[%clk 0:01:14]} 33. Qf3 {[%clk 0:00:44]}  Rad8 {[%clk 0:00:58]} 34. Rc6 {[%clk 0:00:23]}  Qxb2 {[%clk 0:00:52]} 0-1


[Site "https://www.chess.com"]

[Event "Titled Tuesday Blitz July 25 Late 2023"]
[White "Fisher_TheGalactic"]
[Black "Perske, Thore"]
[BlackFideId "12902195"]
[WhiteElo "2678"]
[BlackElo "2460"]
[Result "1-0"]
[Round "3"]
[TimeControl "180+2"]
[Date "2023.07.25"]
[WhiteClock "0:02:26"]
[BlackClock "0:01:39"]
[Board "74"]

1. e4 {[%clk 0:03:00]}  e6 {[%clk 0:03:00]} 2. Nf3 {[%clk 0:02:59]}  d5 {[%clk 0:03:00]} 3. exd5 {[%clk 0:03:00]}  exd5 {[%clk 0:03:01]} 4. d4 {[%clk 0:03:01]}  Nc6 {[%clk 0:03:01]} 5. Bd3 {[%clk 0:03:01]}  Bd6 {[%clk 0:03:01]} 6. O-O {[%clk 0:03:01]}  Nge7 {[%clk 0:03:01]} 7. c3 {[%clk 0:02:59]}  Bf5 {[%clk 0:03:01]} 8. Re1 {[%clk 0:02:59]}  Bxd3 {[%clk 0:03:00]} 9. Qxd3 {[%clk 0:03:00]}  Qd7 {[%clk 0:03:00]} 10. b4 {[%clk 0:02:58]}  O-O {[%clk 0:02:54]} 11. Bg5 {[%clk 0:02:55]}  Qf5 {[%clk 0:02:44]} 12. Qd2 {[%clk 0:02:49]}  Qg6 {[%clk 0:02:38]} 13. b5 {[%clk 0:02:46]}  f6 {[%clk 0:01:39]} 14. Bf4 {[%clk 0:02:26]} 1-0


[Site "https://www.chess.com"]

[Event "Titled Tuesday Blitz July 25 Late 2023"]
[White "Bobkov, Vadim"]
[Black "Shuvalova, Polina"]
[WhiteFideId "34110876"]
[BlackFideId "24171760"]
[WhiteElo "2451"]
[BlackElo "2644"]
[Result "1-0"]
[Round "3"]
[TimeControl "180+2"]
[Date "2023.07.25"]
[WhiteClock "0:00:03"]
[BlackClock "0:00:01"]
[Board "77"]

1. d4 {[%clk 0:03:00]}  Nf6 {[%clk 0:02:35]} 2. c4 {[%clk 0:03:00]}  c5 {[%clk 0:02:34]} 3. d5 {[%clk 0:03:00]}  d6 {[%clk 0:02:35]} 4. Nc3 {[%clk 0:02:59]}  g6 {[%clk 0:02:35]} 5. e4 {[%clk 0:02:58]}  Bg7 {[%clk 0:02:36]} 6. Bd3 {[%clk 0:02:59]}  O-O {[%clk 0:02:36]} 7. Nge2 {[%clk 0:02:59]}  e6 {[%clk 0:02:37]} 8. h3 {[%clk 0:02:57]}  Re8 {[%clk 0:02:35]} 9. O-O {[%clk 0:02:56]}  exd5 {[%clk 0:02:36]} 10. exd5 {[%clk 0:02:56]}  Nbd7 {[%clk 0:02:37]} 11. f4 {[%clk 0:02:56]}  a6 {[%clk 0:02:35]} 12. a4 {[%clk 0:02:56]}  Nf8 {[%clk 0:02:30]} 13. Qc2 {[%clk 0:02:49]}  Bd7 {[%clk 0:02:28]} 14. f5 {[%clk 0:02:43]}  Bxf5 {[%clk 0:02:00]} 15. Bxf5 {[%clk 0:02:25]}  gxf5 {[%clk 0:02:01]} 16. Qxf5 {[%clk 0:02:17]}  Qd7 {[%clk 0:01:57]} 17. Qf3 {[%clk 0:01:44]}  h6 {[%clk 0:01:23]} 18. Ng3 {[%clk 0:01:23]}  Ng6 {[%clk 0:01:07]} 19. Nf5 {[%clk 0:01:08]}  Nh7 {[%clk 0:01:05]} 20. Bxh6 {[%clk 0:00:56]}  Bd4+ {[%clk 0:00:44]} 21. Nxd4 {[%clk 0:00:46]}  cxd4 {[%clk 0:00:44]} 22. Ne4 {[%clk 0:00:34]}  Qe7 {[%clk 0:00:37]} 23. Nxd6 {[%clk 0:00:23]}  Red8 {[%clk 0:00:18]} 24. Rae1 {[%clk 0:00:13]}  Qd7 {[%clk 0:00:12]} 25. Nxf7 {[%clk 0:00:08]}  Rf8 {[%clk 0:00:09]} 26. Bxf8 {[%clk 0:00:08]}  Rxf8 {[%clk 0:00:10]} 27. Qh5 {[%clk 0:00:03]}  Kg7 {[%clk 0:00:02]} 28. Qh6+ {[%clk 0:00:03]}  Kg8 {[%clk 0:00:01]} 29. Qxg6# {[%clk 0:00:03]} 1-0


[Site "https://www.chess.com"]

[Event "Titled Tuesday Blitz July 25 Late 2023"]
[White "Voege, Tobias"]
[Black "Kirillov, Dmitry"]
[WhiteFideId "1270513"]
[BlackFideId "34180572"]
[WhiteElo "2623"]
[BlackElo "2450"]
[Result "1/2-1/2"]
[Round "3"]
[TimeControl "180+2"]
[Date "2023.07.25"]
[WhiteClock "0:00:06"]
[BlackClock "0:00:11"]
[Board "78"]

1. e4 {[%clk 0:03:00]}  c5 {[%clk 0:02:59]} 2. Nf3 {[%clk 0:03:01]}  e6 {[%clk 0:02:58]} 3. d4 {[%clk 0:03:01]}  cxd4 {[%clk 0:02:59]} 4. Nxd4 {[%clk 0:03:01]}  Nf6 {[%clk 0:03:00]} 5. Nc3 {[%clk 0:03:02]}  Nc6 {[%clk 0:03:01]} 6. Be3 {[%clk 0:03:02]}  Bb4 {[%clk 0:02:57]} 7. Bd3 {[%clk 0:02:57]}  d5 {[%clk 0:02:56]} 8. exd5 {[%clk 0:02:45]}  Nxd5 {[%clk 0:02:57]} 9. Qd2 {[%clk 0:02:34]}  Nxe3 {[%clk 0:02:47]} 10. fxe3 {[%clk 0:02:32]}  e5 {[%clk 0:02:22]} 11. Nxc6 {[%clk 0:02:25]}  bxc6 {[%clk 0:02:23]} 12. a3 {[%clk 0:02:18]}  Be7 {[%clk 0:02:17]} 13. O-O {[%clk 0:02:11]}  O-O {[%clk 0:02:16]} 14. Rad1 {[%clk 0:02:11]}  Rb8 {[%clk 0:02:14]} 15. Qe2 {[%clk 0:01:59]}  Qb6 {[%clk 0:02:02]} 16. b4 {[%clk 0:01:13]}  g6 {[%clk 0:01:47]} 17. Kh1 {[%clk 0:01:11]}  Kg7 {[%clk 0:01:44]} 18. Na4 {[%clk 0:01:06]}  Qc7 {[%clk 0:01:40]} 19. Be4 {[%clk 0:00:44]}  f5 {[%clk 0:01:37]} 20. Bd3 {[%clk 0:00:42]}  e4 {[%clk 0:01:36]} 21. Bc4 {[%clk 0:00:41]}  Bd6 {[%clk 0:01:21]} 22. g3 {[%clk 0:00:31]}  h5 {[%clk 0:01:16]} 23. Qg2 {[%clk 0:00:22]}  Rh8 {[%clk 0:01:11]} 24. Be2 {[%clk 0:00:12]}  Be6 {[%clk 0:01:04]} 25. c4 {[%clk 0:00:12]}  h4 {[%clk 0:00:22]} 26. g4 {[%clk 0:00:11]}  h3 {[%clk 0:00:22]} 27. Qf2 {[%clk 0:00:12]}  Rbf8 {[%clk 0:00:18]} 28. g5 {[%clk 0:00:12]}  f4 {[%clk 0:00:16]} 29. exf4 {[%clk 0:00:12]}  Rxf4 {[%clk 0:00:16]} 30. Qd4+ {[%clk 0:00:09]}  Be5 {[%clk 0:00:16]} 31. Qe3 {[%clk 0:00:09]}  Rhf8 {[%clk 0:00:14]} 32. Nc5 {[%clk 0:00:09]}  Rxf1+ {[%clk 0:00:08]} 33. Rxf1 {[%clk 0:00:10]}  Rxf1+ {[%clk 0:00:08]} 34. Bxf1 {[%clk 0:00:11]}  Bg4 {[%clk 0:00:08]} 35. Qxe4 {[%clk 0:00:10]}  Bf5 {[%clk 0:00:02]} 36. Qxf5 {[%clk 0:00:06]}  gxf5 {[%clk 0:00:02]} 37. Ne6+ {[%clk 0:00:07]}  Kg6 {[%clk 0:00:03]} 38. Nxc7 {[%clk 0:00:08]}  Bxc7 {[%clk 0:00:03]} 39. Bxh3 {[%clk 0:00:07]}  Kxg5 {[%clk 0:00:04]} 40. Bg2 {[%clk 0:00:08]}  c5 {[%clk 0:00:05]} 41. bxc5 {[%clk 0:00:08]}  Kf4 {[%clk 0:00:05]} 42. Bd5 {[%clk 0:00:07]}  Ke3 {[%clk 0:00:06]} 43. h4 {[%clk 0:00:07]}  f4 {[%clk 0:00:06]} 44. Kg2 {[%clk 0:00:06]}  Kd4 {[%clk 0:00:05]} 45. h5 {[%clk 0:00:06]}  Kxc5 {[%clk 0:00:05]} 46. Kf3 {[%clk 0:00:06]}  Be5 {[%clk 0:00:06]} 47. Ke4 {[%clk 0:00:06]}  Bh8 {[%clk 0:00:04]} 48. h6 {[%clk 0:00:06]}  a5 {[%clk 0:00:05]} 49. h7 {[%clk 0:00:05]}  a4 {[%clk 0:00:06]} 50. Kf5 {[%clk 0:00:05]}  f3 {[%clk 0:00:06]} 51. Bxf3 {[%clk 0:00:04]}  Kxc4 {[%clk 0:00:07]} 52. Bd1 {[%clk 0:00:02]}  Kc3 {[%clk 0:00:08]} 53. Bxa4 {[%clk 0:00:02]}  Kb2 {[%clk 0:00:08]} 54. Bd7 {[%clk 0:00:02]}  Kxa3 {[%clk 0:00:09]} 55. Ke6 {[%clk 0:00:03]}  Bb2 {[%clk 0:00:10]} 56. Kf7 {[%clk 0:00:04]}  Bh8 {[%clk 0:00:10]} 57. Kg8 {[%clk 0:00:05]}  Bb2 {[%clk 0:00:11]} 58. Be6 {[%clk 0:00:05]}  Bc3 {[%clk 0:00:11]} 59. h8=Q {[%clk 0:00:06]}  Bxh8 {[%clk 0:00:11]} 1/2-1/2


[Site "https://www.chess.com"]

[Event "Titled Tuesday Blitz July 25 Late 2023"]
[White "Ismayil, Malak"]
[Black "Czernek, Tymon"]
[WhiteFideId "13412604"]
[BlackFideId "1199510"]
[WhiteElo "2445"]
[BlackElo "2610"]
[Result "0-1"]
[Round "3"]
[TimeControl "180+2"]
[Date "2023.07.25"]
[WhiteClock "0:00:06"]
[BlackClock "0:01:15"]
[Board "83"]

1. e4 {[%clk 0:03:00]}  c5 {[%clk 0:02:47]} 2. Nf3 {[%clk 0:03:01]}  d6 {[%clk 0:02:48]} 3. Bb5+ {[%clk 0:03:00]}  Bd7 {[%clk 0:02:47]} 4. Bxd7+ {[%clk 0:03:00]}  Qxd7 {[%clk 0:02:47]} 5. c4 {[%clk 0:02:52]}  Nf6 {[%clk 0:02:47]} 6. Nc3 {[%clk 0:02:50]}  g6 {[%clk 0:02:46]} 7. O-O {[%clk 0:02:48]}  Bg7 {[%clk 0:02:46]} 8. d4 {[%clk 0:02:49]}  cxd4 {[%clk 0:02:46]} 9. Nxd4 {[%clk 0:02:49]}  O-O {[%clk 0:02:47]} 10. Re1 {[%clk 0:02:34]}  Nc6 {[%clk 0:02:44]} 11. Nc2 {[%clk 0:02:31]}  Rac8 {[%clk 0:02:43]} 12. h3 {[%clk 0:02:21]}  Nh5 {[%clk 0:02:31]} 13. c5 {[%clk 0:01:39]}  Rfd8 {[%clk 0:02:27]} 14. cxd6 {[%clk 0:01:38]}  Qxd6 {[%clk 0:02:25]} 15. Qxd6 {[%clk 0:01:37]}  Rxd6 {[%clk 0:02:23]} 16. Bg5 {[%clk 0:01:38]}  Rcd8 {[%clk 0:02:10]} 17. Nd5 {[%clk 0:01:29]}  f6 {[%clk 0:01:57]} 18. Be3 {[%clk 0:01:26]}  f5 {[%clk 0:01:57]} 19. Bg5 {[%clk 0:01:01]}  Kf7 {[%clk 0:01:46]} 20. Nc3 {[%clk 0:00:43]}  h6 {[%clk 0:01:37]} 21. Be3 {[%clk 0:00:39]}  f4 {[%clk 0:01:34]} 22. Bc5 {[%clk 0:00:39]}  Rd2 {[%clk 0:01:34]} 23. Rac1 {[%clk 0:00:37]}  b6 {[%clk 0:01:32]} 24. Ba3 {[%clk 0:00:36]}  g5 {[%clk 0:01:32]} 25. Nd5 {[%clk 0:00:33]}  e6 {[%clk 0:01:29]} 26. Nc3 {[%clk 0:00:31]}  Ne5 {[%clk 0:01:27]} 27. Red1 {[%clk 0:00:24]}  f3 {[%clk 0:01:21]} 28. Rxd2 {[%clk 0:00:20]}  Rxd2 {[%clk 0:01:22]} 29. Ne1 {[%clk 0:00:16]}  Nf4 {[%clk 0:01:15]} 30. Nd1 {[%clk 0:00:06]}  Ne2+ {[%clk 0:01:15]} 0-1


[Site "https://www.chess.com"]

[Event "Titled Tuesday Blitz July 25 Late 2023"]
[White "Hamedi Nia, Vesal"]
[Black "ArtemDyachuk"]
[WhiteFideId "12542253"]
[WhiteElo "2444"]
[BlackElo "2609"]
[Result "1-0"]
[Round "3"]
[TimeControl "180+2"]
[Date "2023.07.25"]
[WhiteClock "0:00:21"]
[BlackClock "0:00:02"]
[Board "84"]

1. d4 {[%clk 0:03:00]}  Nf6 {[%clk 0:02:59]} 2. c4 {[%clk 0:03:01]}  e6 {[%clk 0:02:59]} 3. Nf3 {[%clk 0:03:01]}  c5 {[%clk 0:02:58]} 4. d5 {[%clk 0:03:02]}  d6 {[%clk 0:02:58]} 5. Nc3 {[%clk 0:03:01]}  exd5 {[%clk 0:02:58]} 6. cxd5 {[%clk 0:03:01]}  g6 {[%clk 0:02:59]} 7. Bg5 {[%clk 0:03:02]}  Bg7 {[%clk 0:02:58]} 8. Nd2 {[%clk 0:03:02]}  h6 {[%clk 0:02:55]} 9. Bh4 {[%clk 0:03:02]}  g5 {[%clk 0:02:55]} 10. Bg3 {[%clk 0:03:02]}  Nh5 {[%clk 0:02:55]} 11. e4 {[%clk 0:03:01]}  Nxg3 {[%clk 0:02:55]} 12. hxg3 {[%clk 0:03:02]}  O-O {[%clk 0:02:53]} 13. Bd3 {[%clk 0:03:02]}  Nd7 {[%clk 0:02:52]} 14. O-O {[%clk 0:03:01]}  Ne5 {[%clk 0:02:52]} 15. Be2 {[%clk 0:03:01]}  f5 {[%clk 0:02:49]} 16. f4 {[%clk 0:02:59]}  gxf4 {[%clk 0:02:46]} 17. gxf4 {[%clk 0:03:00]}  Ng4 {[%clk 0:02:46]} 18. Bxg4 {[%clk 0:02:59]}  fxg4 {[%clk 0:02:40]} 19. Qe1 {[%clk 0:02:54]}  h5 {[%clk 0:02:07]} 20. g3 {[%clk 0:02:53]}  b5 {[%clk 0:01:53]} 21. Kg2 {[%clk 0:02:44]}  b4 {[%clk 0:01:41]} 22. Nd1 {[%clk 0:02:38]}  h4 {[%clk 0:01:15]} 23. gxh4 {[%clk 0:02:37]}  Ba6 {[%clk 0:01:14]} 24. Qg3 {[%clk 0:02:21]}  Bxf1+ {[%clk 0:01:12]} 25. Nxf1 {[%clk 0:02:22]}  Qf6 {[%clk 0:01:11]} 26. f5 {[%clk 0:02:12]}  Bh6 {[%clk 0:00:50]} 27. Nf2 {[%clk 0:01:51]}  Qxb2 {[%clk 0:00:45]} 28. Re1 {[%clk 0:01:16]}  Qe5 {[%clk 0:00:44]} 29. Qxg4+ {[%clk 0:01:09]}  Kh8 {[%clk 0:00:43]} 30. Qh5 {[%clk 0:01:09]}  Rg8+ {[%clk 0:00:38]} 31. Kh3 {[%clk 0:01:05]}  Qf4 {[%clk 0:00:23]} 32. Nd3 {[%clk 0:00:50]}  Qg4+ {[%clk 0:00:11]} 33. Qxg4 {[%clk 0:00:49]}  Rxg4 {[%clk 0:00:12]} 34. Kxg4 {[%clk 0:00:50]}  a5 {[%clk 0:00:11]} 35. f6 {[%clk 0:00:48]}  c4 {[%clk 0:00:10]} 36. Nf4 {[%clk 0:00:48]}  b3 {[%clk 0:00:10]} 37. axb3 {[%clk 0:00:48]}  cxb3 {[%clk 0:00:11]} 38. Ng6+ {[%clk 0:00:46]}  Kh7 {[%clk 0:00:10]} 39. h5 {[%clk 0:00:43]}  a4 {[%clk 0:00:09]} 40. e5 {[%clk 0:00:32]}  dxe5 {[%clk 0:00:08]} 41. Rxe5 {[%clk 0:00:32]}  Bf8 {[%clk 0:00:05]} 42. Nxf8+ {[%clk 0:00:20]}  Rxf8 {[%clk 0:00:05]} 43. Re7+ {[%clk 0:00:20]}  Kh6 {[%clk 0:00:02]} 44. Kf5 {[%clk 0:00:20]}  b2 {[%clk 0:00:01]} 45. Rb7 {[%clk 0:00:20]}  a3 {[%clk 0:00:01]} 46. Ne3 {[%clk 0:00:20]}  a2 {[%clk 0:00:01]} 47. Ng4+ {[%clk 0:00:21]}  Kxh5 {[%clk 0:00:02]} 48. Rh7# {[%clk 0:00:21]} 1-0


[Site "https://www.chess.com"]